[Event "Faroes Open 2018"]
[Site "Sandavagur"]
[Date "2018.07.10"]
[Round "5"]
[White "Olsen, Kaj"]
[Black "Tummasarson, Flóvin Matras"]
[Result "1-0"]
[ECO "C64"]
[WhiteElo "1696"]
[BlackElo "1237"]
[Annotator "NA"]
[PlyCount "73"]
[EventDate "2018.07.07"]
[EventType "swiss"]
[EventCountry "FAI"]
[SourceTitle "playchess.com"]
[Source "ChessBase"]
[SourceQuality "1"]
[TimeControl "40/5400+30:900+30"]

1. e4 {[%emt 0:00:00]} e5 {[%emt 0:00:04]} 2. Nf3 {[%emt 0:00:00]} Nc6 {[%emt 0:00:17]} 3. Bb5 {[%emt 0:00:09]} Bc5 {[%emt 0:00:19]} 4. O-O {[%emt 0:00:26]} Nd4 {[%emt 0:00:12]} 5. Bc4 {[%emt 0:02:35]} d6 {[%emt 0:02:11]} 6. c3 {[%emt 0:00:39]} Nc6 {[%emt 0:02:17]} 7. h3 {[%emt 0:01:28]} Be6 {[%emt 0:02:24]} 8. Bb3 {[%emt 0:00:26]} Nf6 {[%emt 0:01:07]} 9. Re1 {[%emt 0:02:45]} O-O {[%emt 0:02:44]} 10. d4 {[%emt 0:00:37]} Bxb3 {[%emt 0:00:05]} 11. axb3 {[%emt 0:00:24]} exd4 {[%emt 0:01:23]} 12. cxd4 {[%emt 0:00:15]} Bb6 {[%emt 0:01:28]} 13. Bg5 {[%emt 0:00:34]} Re8 {[%emt 0:03:01]} 14. Nc3 {[%emt 0:01:55]} h6 {[%emt 0:01:52]} 15. Bh4 {[%emt 0:00:31]} Ba5 {[%emt 0:03:05]} 16. d5 {[%emt 0:06:16]} Bxc3 {[%emt 0:02:52]} 17. bxc3 {[%emt 0:01:04]} Ne5 {[%emt 0:00:33]} 18. Nxe5 {[%emt 0:03:00]} dxe5 {[%emt 0:00:43]} 19. Qf3 {[%emt 0:04:38]} g5 {[%emt 0:09:20]} 20. Bg3 {[%emt 0:01:25]} Qd6 {[%emt 0:06:53]} 21. h4 {[%emt 0:07:33]} g4 {[%emt 0:03:30]} 22. Qf5 {[%emt 0:01:54]} Kg7 {[%emt 0:03:49]} 23. Re3 {[%emt 0:06:46]} Qd7 {[%emt 0:01:32]} 24. Bxe5 {[%emt 0:08:00]} Qxf5 {[%emt 0:02:48]} 25. exf5 {[%emt 0:00:29]} a6 {[%emt 0:00:34]} 26. Rae1 {[%emt 0:00:26]} Red8 {[%emt 0:01:32]} 27. c4 {[%emt 0:00:37]} b5 {[%emt 0:00:08]} 28. Bxc7 {[%emt 0:00:36]} Rdc8 {[%emt 0:01:05]} 29. d6 {[%emt 0:02:13]} bxc4 {[%emt 0:02:41]} 30. bxc4 {[%emt 0:01:09]} h5 {[%emt 0:00:55]} 31. Re5 {[%emt 0:14:29]} a5 {[%emt 0:07:54]} 32. Re7 {[%emt 0:02:20]} a4 {[%emt 0:01:44]} 33. d7 {[%emt 0:04:35]} Rxc7 {[%emt 0:04:44]} 34. d8=Q {[%emt 0:00:16]} Rxd8 {[%emt 0:00:16]} 35. Rxc7 {[%emt 0:00:07]} a3 {[%emt 0:00:45]} 36. Ra7 {[%emt 0:00:41]} Rd3 {[%emt 0:00:32]} 37. Rc1 {[%emt 0:00:39]} 1-0

[Event "Faroes Open 2018"]
[Site "Sandavagur"]
[Date "2018.07.10"]
[Round "5"]
[White "Joensen, Hans Petur"]
[Black "Nielsen, Torkil"]
[Result "0-1"]
[ECO "A10"]
[WhiteElo "1627"]
[BlackElo "2115"]
[Annotator "NA"]
[PlyCount "70"]
[EventDate "2018.07.07"]
[EventType "swiss"]
[EventCountry "FAI"]
[SourceTitle "playchess.com"]
[Source "ChessBase"]
[SourceQuality "1"]
[TimeControl "40/5400+30:900+30"]

1. c4 {[%emt 0:00:12]} f5 {[%emt 0:00:00]} 2. Nc3 {[%emt 0:00:21]} Nf6 {[%emt 0:00:05]} 3. g3 {[%emt 0:00:27]} e6 {[%emt 0:00:45]} 4. Bg2 {[%emt 0:00:19]} Be7 {[%emt 0:00:27]} 5. Nf3 {[%emt 0:01:30]} d6 {[%emt 0:00:16]} 6. O-O {[%emt 0:01:04]} O-O {[%emt 0:00:17]} 7. d3 {[%emt 0:02:11]} Qe8 {[%emt 0:03:31]} 8. e4 {[%emt 0:07:17]} e5 {[%emt 0:01:58] LiveBook: 5 Games} 9. exf5 {[%emt 0:02:50]} Bxf5 {[%emt 0:00:50]} 10. d4 {[%emt 0:03:54]} Nc6 {[%emt 0:04:04]} 11. dxe5 {[%emt 0:01:09]} dxe5 {[%emt 0:00:42]} 12. Nd5 {[%emt 0:08:01]} e4 {[%emt 0:11:27] [#]} 13. Nh4 $1 {[%emt 0:12:14]} Qd7 $16 {[%emt 0:04:59]} 14. Nxf5 {[%emt 0:04:58]} Qxf5 {[%emt 0:00:19]} 15. Nxc7 {[%emt 0:06:22]} Rad8 {[%emt 0:02:14]} 16. Qa4 {[%emt 0:01:24]} Nd4 {[%emt 0:03:53]} 17. Be3 {[%emt 0:07:24]} Nf3+ {[%emt 0:04:20]} 18. Kh1 {[%emt 0:00:03]} Nxh2 {[%emt 0:05:27]} 19. Qb5 {[%emt 0:05:30]} Qxb5 {[%emt 0:09:22]} 20. Nxb5 {[%emt 0:01:34]} Nxf1 {[%emt 0:00:12]} 21. Rxf1 {[%emt 0:01:30]} a6 {[%emt 0:02:05]} 22. Nc3 {[%emt 0:00:35]} Ng4 {[%emt 0:01:37]} 23. Nd5 {[%emt 0:07:57]} Nxe3 {[%emt 0:06:15]} 24. Nxe7+ {[%emt 0:06:39]} Kf7 {[%emt 0:02:26]} 25. fxe3+ {[%emt 0:02:44]} Kxe7 {[%emt 0:00:17]} 26. Rc1 {[%emt 0:02:17]} Rf2 {[%emt 0:01:09]} 27. Bxe4 {[%emt 0:00:19]} Rxb2 {[%emt 0:00:24]} 28. Bd5 {[%emt 0:01:24]} b6 {[%emt 0:03:50]} 29. e4 {[%emt 0:00:58]} Kd6 {[%emt 0:02:44]} 30. Rf1 {[%emt 0:00:35]} Rd7 {[%emt 0:01:05]} 31. Rf5 {[%emt 0:00:32]} Re7 {[%emt 0:01:00]} 32. Kg1 {[%emt 0:01:44]} Re5 {[%emt 0:00:59]} 33. g4 {[%emt 0:04:22]} Rxf5 {[%emt 0:01:42]} 34. gxf5 {[%emt 0:00:09]} Ke5 {[%emt 0:00:19]} 35. Kf1 {[%emt 0:00:39]} Rxa2 0-1

[Event "Faroes Open 2018"]
[Site "Sandavagur"]
[Date "2018.07.10"]
[Round "5"]
[White "Nielsen, Suni í Horni"]
[Black "Petersen, Gutti"]
[Result "1-0"]
[ECO "B13"]
[WhiteElo "1487"]
[BlackElo "1596"]
[Annotator "NA"]
[PlyCount "81"]
[EventDate "2018.07.07"]
[EventType "swiss"]
[EventCountry "FAI"]
[SourceTitle "playchess.com"]
[Source "ChessBase"]
[SourceQuality "1"]
[TimeControl "40/5400+30:900+30"]

1. e4 {[%emt 0:00:00]} c6 {[%emt 0:00:00]} 2. d4 {[%emt 0:01:37]} d5 {[%emt 0:00:26]} 3. exd5 {[%emt 0:02:41]} cxd5 {[%emt 0:00:23]} 4. Nc3 {[%emt 0:01:01]} Nc6 {[%emt 0:03:36]} 5. Nf3 {[%emt 0:01:55]} Nf6 {[%emt 0:01:40]} 6. h3 {[%emt 0:02:02]} a6 {[%emt 0:00:22]} 7. Bd3 {[%emt 0:01:04]} e6 {[%emt 0:00:25]} 8. Bg5 {[%emt 0:02:34]} Be7 {[%emt 0:00:29]} 9. O-O {[%emt 0:03:07]} h6 {[%emt 0:05:35]} 10. Bh4 {[%emt 0:00:30]} O-O {[%emt 0:01:18]} 11. Ne2 {[%emt 0:00:57]} b5 {[%emt 0:01:10]} 12. c3 {[%emt 0:00:46]} Bb7 {[%emt 0:00:24]} 13. Bc2 {[%emt 0:00:26]} g6 {[%emt 0:02:45]} 14. Qd3 {[%emt 0:02:02]} Ne4 {[%emt 0:01:31]} 15. Bg3 {[%emt 0:09:31]} Kg7 {[%emt 0:01:46]} 16. Bf4 {[%emt 0:13:27]} Bd6 {[%emt 0:14:13]} 17. Ne5 {[%emt 0:01:36]} Nxe5 {[%emt 0:02:52]} 18. Bxe5+ {[%emt 0:00:22]} Bxe5 {[%emt 0:03:25]} 19. dxe5 {[%emt 0:00:00]} Rc8 {[%emt 0:02:30]} 20. f3 {[%emt 0:02:06]} Qb6+ {[%emt 0:00:11]} 21. Nd4 {[%emt 0:00:36]} Ng3 {[%emt 0:01:44]} 22. Qe3 {[%emt 0:06:01]} Qd8 {[%emt 0:05:06]} 23. Rf2 {[%emt 0:03:02]} Nf5 {[%emt 0:03:54]} 24. Nxf5+ {[%emt 0:03:15]} gxf5 {[%emt 0:00:17]} 25. f4 {[%emt 0:11:56]} h5 {[%emt 0:06:54]} 26. Qf3 {[%emt 0:01:59]} h4 {[%emt 0:03:14]} 27. g4 {[%emt 0:00:57]} hxg3 28. Rg2 {[%emt 0:02:46]} Qh4 {[%emt 0:10:30]} 29. Rxg3+ {[%emt 0:06:17]} Kh6 {[%emt 0:01:35]} 30. Kh2 {[%emt 0:01:41]} Rg8 {[%emt 0:01:52]} 31. Rag1 {[%emt 0:00:09]} Rxg3 {[%emt 0:00:26]} 32. Rxg3 {[%emt 0:00:00]} Bc6 {[%emt 0:04:47]} 33. Bd1 {[%emt 0:00:51]} d4 {[%emt 0:01:07]} 34. Qf2 {[%emt 0:01:51]} dxc3 {[%emt 0:01:07]} 35. bxc3 {[%emt 0:00:01]} Qe7 {[%emt 0:02:31]} 36. Rg5 {[%emt 0:00:20]} Qxg5 {[%emt 0:02:51]} 37. fxg5+ {[%emt 0:00:01]} Kxg5 {[%emt 0:00:31]} 38. Qg3+ {[%emt 0:01:40]} Kh6 {[%emt 0:00:12]} 39. Qh4+ {[%emt 0:00:15]} Kg7 {[%emt 0:00:07]} 40. Qf6+ {[%emt 0:00:16]} Kf8 {[%emt 0:00:18]} 41. Qh8+ {[%emt 0:15:14]} 1-0

[Event "Faroes Open 2018"]
[Site "Sandavagur"]
[Date "2018.07.10"]
[Round "5"]
[White "Jacobsen, Markus"]
[Black "Nielsen, Jón í Horni"]
[Result "0-1"]
[ECO "C57"]
[WhiteElo "1106"]
[BlackElo "1735"]
[Annotator "NA"]
[PlyCount "50"]
[EventDate "2018.07.07"]
[EventType "swiss"]
[EventCountry "FAI"]
[SourceTitle "playchess.com"]
[Source "ChessBase"]
[SourceQuality "1"]
[TimeControl "40/5400+30:900+30"]

1. e4 {[%emt 0:00:00]} e5 {[%emt 0:00:00]} 2. Nf3 {[%emt 0:00:00]} Nc6 {[%emt 0:00:07]} 3. Bc4 {[%emt 0:00:00]} Nf6 {[%emt 0:00:40]} 4. Ng5 {[%emt 0:00:51]} d5 {[%emt 0:01:27]} 5. exd5 {[%emt 0:01:08]} Nd4 {[%emt 0:01:58]} 6. O-O {[%emt 0:03:38]} h6 {[%emt 0:00:40]} 7. Nf3 {[%emt 0:04:02]} Bg4 {[%emt 0:00:07]} 8. Nc3 {[%emt 0:02:10]} Bd6 {[%emt 0:01:45]} 9. h3 {[%emt 0:01:43]} Nxf3+ {[%emt 0:00:14]} 10. gxf3 {[%emt 0:01:07]} Bxh3 {[%emt 0:00:01]} 11. Re1 {[%emt 0:00:23]} O-O {[%emt 0:00:29]} 12. d3 {[%emt 0:01:12]} Nh5 {[%emt 0:00:53]} 13. Ne4 {[%emt 0:03:44]} Nf4 {[%emt 0:01:38]} 14. d4 {[%emt 0:04:20]} Ng2 {[%emt 0:10:23]} 15. Re2 {[%emt 0:03:41]} Nh4 {[%emt 0:00:05]} 16. Re3 {[%emt 0:03:09]} exd4 {[%emt 0:00:48]} 17. Qxd4 {[%emt 0:02:18]} c5 {[%emt 0:00:06]} 18. Nf6+ {[%emt 0:04:11]} Qxf6 {[%emt 0:00:09]} 19. Qxf6 {[%emt 0:00:24]} gxf6 {[%emt 0:00:03]} 20. Rb3 {[%emt 0:01:50]} Kh8 {[%emt 0:00:05]} 21. f4 {[%emt 0:00:55]} Rg8+ {[%emt 0:00:10]} 22. Rg3 {[%emt 0:00:12]} Nf3+ {[%emt 0:00:27]} 23. Kh1 {[%emt 0:00:17]} Rxg3 {[%emt 0:00:02]} 24. fxg3 {[%emt 0:00:21]} Re8 {[%emt 0:00:02]} 25. Bd2 {[%emt 0:00:41]} Nxd2 {[%emt 0:00:03]} 0-1

[Event "Faroes Open 2018"]
[Site "Sandavagur"]
[Date "2018.07.10"]
[Round "5"]
[White "Petersen, Elias"]
[Black "Fjallheim, Benjamin Reinert"]
[Result "1-0"]
[ECO "C54"]
[WhiteElo "1035"]
[BlackElo "1375"]
[Annotator "NA"]
[PlyCount "83"]
[EventDate "2018.07.07"]
[EventType "swiss"]
[EventCountry "FAI"]
[SourceTitle "playchess.com"]
[Source "ChessBase"]
[SourceQuality "1"]
[TimeControl "40/5400+30:900+30"]

1. e4 {[%emt 0:00:00]} e5 {[%emt 0:00:00]} 2. Nf3 {[%emt 0:00:00]} Nc6 {[%emt 0:00:26]} 3. Bc4 {[%emt 0:00:25]} Bc5 {[%emt 0:00:49]} 4. c3 {[%emt 0:02:48]} Nf6 {[%emt 0:00:23]} 5. d3 {[%emt 0:02:09]} d6 {[%emt 0:01:57]} 6. h3 {[%emt 0:00:57]} Be6 {[%emt 0:01:32]} 7. Bb5 {[%emt 0:04:54]} Bd7 {[%emt 0:01:15]} 8. O-O {[%emt 0:01:14]} Qe7 {[%emt 0:02:16]} 9. Re1 {[%emt 0:02:14]} a6 {[%emt 0:02:38]} 10. Ba4 {[%emt 0:00:14]} O-O-O {[%emt 0:00:23]} 11. d4 {[%emt 0:01:07]} exd4 {[%emt 0:00:17]} 12. cxd4 {[%emt 0:00:13]} Bb6 {[%emt 0:01:30]} 13. Nc3 {[%emt 0:01:07]} Rhe8 {[%emt 0:06:17]} 14. Nd5 {[%emt 0:02:06]} Qf8 {[%emt 0:02:33]} 15. Nxf6 {[%emt 0:01:01]} gxf6 {[%emt 0:00:20]} 16. Bf4 {[%emt 0:01:02]} Qg7 {[%emt 0:00:27]} 17. Bg3 {[%emt 0:01:07]} h5 {[%emt 0:01:11]} 18. Kh1 {[%emt 0:02:19]} Rh8 {[%emt 0:01:29]} 19. Bh4 {[%emt 0:01:47]} Rdg8 {[%emt 0:00:23]} 20. Rg1 {[%emt 0:01:43]} Ne7 {[%emt 0:02:38]} 21. Bc2 {[%emt 0:01:23]} Ng6 {[%emt 0:01:05]} 22. Qd2 {[%emt 0:01:23]} Bg4 {[%emt 0:05:04]} 23. Bg3 {[%emt 0:02:21]} Bd7 {[%emt 0:07:08]} 24. Bh4 {[%emt 0:00:38]} Rh6 {[%emt 0:00:30]} 25. Bxf6 {[%emt 0:01:46]} Qf8 {[%emt 0:03:02]} 26. Rae1 {[%emt 0:00:41]} c6 {[%emt 0:03:54]} 27. d5 {[%emt 0:01:55]} c5 {[%emt 0:01:39]} 28. Rc1 {[%emt 0:01:41]} Bd8 {[%emt 0:01:02]} 29. Bxd8 {[%emt 0:00:25]} Kxd8 {[%emt 0:00:09]} 30. Qa5+ {[%emt 0:01:17]} Kc8 {[%emt 0:00:17]} 31. b4 {[%emt 0:00:16]} Nf4 {[%emt 0:00:38]} 32. Bd1 {[%emt 0:00:54]} Nd3 {[%emt 0:04:43]} 33. Rc2 {[%emt 0:00:37]} Rhg6 {[%emt 0:09:04]} 34. bxc5 {[%emt 0:03:35]} dxc5 {[%emt 0:00:31]} 35. e5 {[%emt 0:01:13]} Kb8 {[%emt 0:03:41]} 36. d6 {[%emt 0:00:49]} Bxh3 {[%emt 0:03:53]} 37. Nh4 {[%emt 0:01:18]} Rg5 {[%emt 0:01:50]} 38. Qa3 {[%emt 0:01:03]} Nf4 {[%emt 0:01:22]} 39. Bf3 {[%emt 0:01:47]} Qg7 {[%emt 0:03:11]} 40. Qxc5 {[%emt 0:01:26]} Nxg2 {[%emt 0:02:23]} 41. Qc7+ {[%emt 0:15:12]} Ka7 {[%emt 0:15:52]} 42. Qxb7# {[%emt 0:00:07]} 1-0

[Event "Faroes Open 2018"]
[Site "Sandavagur"]
[Date "2018.07.11"]
[Round "6"]
[White "Ziska, Helgi Dam"]
[Black "Nielsen, Høgni Egilstoft"]
[Result "1/2-1/2"]
[ECO "A00"]
[WhiteElo "2552"]
[BlackElo "2397"]
[Annotator "ChessBase"]
[PlyCount "109"]
[EventDate "2018.07.07"]
[EventType "swiss"]
[EventCountry "FAI"]
[SourceTitle "playchess.com"]
[Source "ChessBase"]
[SourceQuality "1"]
[TimeControl "40/5400+30:900+30"]

1. g3 {[%emt 0:00:50]} Nf6 {[%emt 0:00:00]} 2. Bg2 {[%emt 0:00:23]} d5 {[%emt 0:01:35]} 3. Nf3 {[%emt 0:00:11]} h6 {[%emt 0:03:50]} 4. O-O {[%emt 0:06:38]} Bf5 {[%emt 0:01:43]} 5. c4 {[%emt 0:02:35]} c6 {[%emt 0:01:46]} 6. cxd5 {[%emt 0:03:41]} cxd5 {[%emt 0:00:17]} 7. Qb3 {[%emt 0:00:59]} Qb6 {[%emt 0:16:10]} 8. Qxb6 {[%emt 0:00:51]} axb6 {[%emt 0:00:08]} 9. d3 {[%emt 0:08:20]} e6 {[%emt 0:02:04]} 10. Nc3 {[%emt 0:01:40]} Be7 {[%emt 0:04:02]} 11. Bf4 {[%emt 0:11:51]} O-O {[%emt 0:07:57]} 12. Nb5 {[%emt 0:05:25]} Na6 {[%emt 0:10:08]} 13. Rfc1 {[%emt 0:05:45]} Rfd8 {[%emt 0:12:55]} 14. Nfd4 {[%emt 0:02:28]} Bg6 {[%emt 0:01:44]} 15. Nc7 {[%emt 0:12:16]} Nxc7 {[%emt 0:01:40]} 16. Rxc7 {[%emt 0:01:19]} Rd7 {[%emt 0:00:44]} 17. Rc2 {[%emt 0:01:22]} Ne8 {[%emt 0:05:53]} 18. Bh3 {[%emt 0:01:39]} Rdd8 {[%emt 0:02:49]} 19. a3 {[%emt 0:02:36]} Bf6 {[%emt 0:03:44]} 20. Be3 {[%emt 0:04:35]} Nd6 {[%emt 0:02:40]} 21. f4 {[%emt 0:01:31]} Rdc8 {[%emt 0:05:02]} 22. Rac1 {[%emt 0:00:23]} Kf8 {[%emt 0:00:53]} 23. Nf3 {[%emt 0:01:39]} Rxc2 {[%emt 0:11:02]} 24. Rxc2 {[%emt 0:00:05]} Rc8 {[%emt 0:00:14]} 25. Rxc8+ {[%emt 0:01:13]} Nxc8 {[%emt 0:00:05]} 26. Ne5 {[%emt 0:00:10]} Bxe5 {[%emt 0:00:06]} 27. fxe5 {[%emt 0:00:05]} Ke7 {[%emt 0:00:04]} 28. Bd2 {[%emt 0:03:22]} Na7 {[%emt 0:02:19]} 29. Bb4+ {[%emt 0:00:21]} Ke8 {[%emt 0:00:44]} 30. Kf2 {[%emt 0:00:23]} Bf5 {[%emt 0:01:41]} 31. g4 {[%emt 0:03:41]} Bg6 {[%emt 0:00:25]} 32. Ke3 {[%emt 0:01:36]} h5 {[%emt 0:00:55]} 33. Kf4 {[%emt 0:01:32]} Nc6 {[%emt 0:00:31]} 34. Bd6 {[%emt 0:06:15]} b5 {[%emt 0:00:36]} 35. g5 {[%emt 0:03:22]} Nd4 {[%emt 0:00:30]} 36. Bf1 {[%emt 0:00:15]} Nb3 {[%emt 0:00:31]} 37. Bb4 {[%emt 0:00:55]} Kd7 {[%emt 0:00:31]} 38. Bf8 {[%emt 0:01:30]} Kc6 {[%emt 0:00:03]} 39. Bxg7 {[%emt 0:00:50]} b4 {[%emt 0:00:05]} 40. axb4 {[%emt 0:01:06]} Kb5 {[%emt 0:00:50]} 41. Bf8 {[%emt 0:18:02]} Nc1 {[%emt 0:06:42]} 42. Bc5 {[%emt 0:00:00]} Nb3 {[%emt 0:04:34]} 43. Bd6 {[%emt 0:00:00]} Nc1 {[%emt 0:00:15]} 44. e4 {[%emt 0:00:00]} d4 {[%emt 0:01:47]} 45. Bc5 {[%emt 0:00:00]} Nb3 {[%emt 0:00:09]} 46. Be2 {[%emt 0:00:00]} Nc1 {[%emt 0:00:49]} 47. Bf1 {[%emt 0:00:00]} Nb3 {[%emt 0:00:05]} 48. Kg3 {[%emt 0:00:00]} Nxc5 {[%emt 0:03:59]} 49. bxc5 {[%emt 0:00:00]} Kb4 {[%emt 0:00:09]} 50. Be2 {[%emt 0:02:08]} Kb3 {[%emt 0:00:30]} 51. Bd1+ {[%emt 0:00:40]} Kxb2 {[%emt 0:00:08]} 52. Ba4 {[%emt 0:00:03]} Kc3 {[%emt 0:00:19]} 53. Bb5 {[%emt 0:00:04]} Kb4 {[%emt 0:00:33]} 54. Ba6 {[%emt 0:02:44]} Kxc5 {[%emt 0:00:22]} 55. Bxb7 {[%emt 0:00:04]} 1/2-1/2

[Event "Faroes Open 2018"]
[Site "Sandavagur"]
[Date "2018.07.11"]
[Round "6"]
[White "Narayanan, Srinath"]
[Black "Nakar, Eylon"]
[Result "1-0"]
[ECO "E10"]
[WhiteElo "2549"]
[BlackElo "2462"]
[Annotator "ChessBase"]
[PlyCount "79"]
[EventDate "2018.07.07"]
[EventType "swiss"]
[EventCountry "FAI"]
[SourceTitle "playchess.com"]
[Source "ChessBase"]
[SourceQuality "1"]
[TimeControl "40/5400+30:900+30"]

1. d4 {[%emt 0:02:43]} Nf6 {[%emt 0:00:00]} 2. c4 {[%emt 0:00:05]} e6 {[%emt 0:00:00]} 3. Nf3 {[%emt 0:00:25]} d5 {[%emt 0:00:00]} 4. g3 {[%emt 0:00:05]} Bb4+ {[%emt 0:00:20]} 5. Bd2 {[%emt 0:00:08]} Be7 {[%emt 0:00:18]} 6. Bg2 {[%emt 0:00:12]} c6 {[%emt 0:00:51]} 7. O-O {[%emt 0:00:13]} O-O {[%emt 0:03:42]} 8. Qc2 {[%emt 0:00:04]} Nbd7 {[%emt 0:03:43]} 9. a4 {[%emt 0:02:52]} b6 {[%emt 0:22:04]} 10. Rc1 {[%emt 0:01:11]} Bb7 {[%emt 0:07:48]} 11. a5 {[%emt 0:01:11]} c5 {[%emt 0:01:23]} 12. a6 {[%emt 0:15:37]} Bc6 {[%emt 0:00:02]} 13. cxd5 {[%emt 0:00:19]} Bxd5 {[%emt 0:00:45]} 14. Nc3 {[%emt 0:00:34]} Bc6 {[%emt 0:00:58]} 15. dxc5 {[%emt 0:20:24]} bxc5 {[%emt 0:01:04]} 16. e4 {[%emt 0:00:46]} Rb8 {[%emt 0:01:51]} 17. Bf4 {[%emt 0:12:39]} Rb4 {[%emt 0:02:26]} 18. Nd2 {[%emt 0:00:18]} h6 {[%emt 0:20:57]} 19. h3 {[%emt 0:13:51]} g5 {[%emt 0:11:54]} 20. Be3 {[%emt 0:01:34]} Ne5 {[%emt 0:00:02]} 21. b3 {[%emt 0:05:33]} Qb8 {[%emt 0:08:06]} 22. Nd1 {[%emt 0:09:13]} Rd8 {[%emt 0:04:23]} 23. Nb2 {[%emt 0:00:10]} Nfd7 {[%emt 0:06:37]} 24. Ra2 {[%emt 0:00:17]} Rc8 {[%emt 0:00:42]} 25. Qd1 {[%emt 0:00:54]} Ba8 {[%emt 0:01:13]} 26. f4 {[%emt 0:02:04]} Ng6 {[%emt 0:00:01]} 27. Nd3 {[%emt 0:00:12]} Rb5 {[%emt 0:00:16]} 28. Qh5 {[%emt 0:01:20]} gxf4 {[%emt 0:02:00]} 29. Nxf4 {[%emt 0:00:09]} c4 {[%emt 0:00:11]} 30. Nxg6 {[%emt 0:01:32]} Rxh5 {[%emt 0:00:03]} 31. Nxe7+ {[%emt 0:00:04]} Kh7 {[%emt 0:00:18]} 32. Nxc8 {[%emt 0:00:04]} Qxc8 {[%emt 0:00:19]} 33. Nxc4 {[%emt 0:00:08]} Qb8 {[%emt 0:00:25]} 34. Rf2 {[%emt 0:00:59]} Kg8 {[%emt 0:00:29]} 35. Rd1 {[%emt 0:00:54]} Nc5 {[%emt 0:01:44]} 36. g4 {[%emt 0:02:53]} Rg5 {[%emt 0:00:01]} 37. Rf4 {[%emt 0:00:18]} Rxg4 {[%emt 0:00:54]} 38. Bxc5 {[%emt 0:05:29]} Bxe4 39. Ne3 Rh4 {[%emt 0:00:37]} 40. Be7 {[%emt 0:01:18]} 1-0

[Event "Faroes Open 2018"]
[Site "Sandavagur"]
[Date "2018.07.11"]
[Round "6"]
[White "Jotic, Vladimir"]
[Black "Miezis, Normunds"]
[Result "0-1"]
[ECO "B40"]
[WhiteElo "2387"]
[BlackElo "2468"]
[Annotator "ChessBase"]
[PlyCount "68"]
[EventDate "2018.07.07"]
[EventType "swiss"]
[EventCountry "FAI"]
[SourceTitle "playchess.com"]
[Source "ChessBase"]
[SourceQuality "1"]
[TimeControl "40/5400+30:900+30"]

1. e4 {[%emt 0:00:00]} c5 {[%emt 0:00:00]} 2. Nf3 {[%emt 0:00:00]} e6 {[%emt 0:00:18]} 3. d3 {[%emt 0:00:09]} Nc6 {[%emt 0:01:39]} 4. g3 {[%emt 0:00:30]} g6 {[%emt 0:01:15]} 5. Bg2 {[%emt 0:00:21]} Bg7 {[%emt 0:00:18]} 6. O-O {[%emt 0:00:04]} Nge7 {[%emt 0:01:54]} 7. Re1 {[%emt 0:02:21]} d6 {[%emt 0:04:17]} 8. c3 {[%emt 0:07:43]} e5 {[%emt 0:02:12]} 9. a4 {[%emt 0:07:19]} O-O {[%emt 0:01:14]} 10. Na3 {[%emt 0:00:03]} h6 {[%emt 0:01:13]} 11. Nc4 {[%emt 0:02:33]} Be6 {[%emt 0:07:24]} 12. Nfd2 {[%emt 0:00:57]} Rb8 {[%emt 0:08:27]} 13. Ne3 {[%emt 0:20:21]} d5 {[%emt 0:11:29]} 14. exd5 {[%emt 0:00:25]} Nxd5 {[%emt 0:00:17]} 15. Nec4 {[%emt 0:18:10]} Qc7 {[%emt 0:03:39]} 16. Qe2 {[%emt 0:03:27]} Rbd8 {[%emt 0:05:07]} 17. Nf3 {[%emt 0:01:42]} Rfe8 {[%emt 0:05:03]} 18. Bd2 {[%emt 0:09:25]} Bf5 {[%emt 0:04:18]} 19. Rad1 {[%emt 0:00:20]} Nb6 {[%emt 0:04:24]} 20. Be3 {[%emt 0:07:18]} Nxa4 {[%emt 0:04:00]} 21. Nh4 {[%emt 0:00:10]} Be6 {[%emt 0:02:30]} 22. Ra1 {[%emt 0:00:26]} b5 {[%emt 0:01:16]} 23. Na3 {[%emt 0:00:33]} a6 {[%emt 0:01:14]} 24. Be4 {[%emt 0:07:08]} f5 {[%emt 0:05:41]} 25. Bxc6 {[%emt 0:02:20]} Qxc6 {[%emt 0:00:11]} 26. Nxg6 {[%emt 0:00:26]} f4 {[%emt 0:00:54]} 27. Bxf4 {[%emt 0:02:44]} exf4 {[%emt 0:02:07]} 28. Nxf4 {[%emt 0:00:08]} Bc8 {[%emt 0:01:15]} 29. Qh5 {[%emt 0:02:27]} Bb7 {[%emt 0:00:21]} 30. Rxe8+ {[%emt 0:00:14]} Rxe8 {[%emt 0:01:17]} 31. Nd5 {[%emt 0:00:11]} Nxb2 {[%emt 0:01:09]} 32. Nc2 {[%emt 0:00:19]} Nxd3 {[%emt 0:02:08]} 33. Rd1 {[%emt 0:00:02]} Qxd5 {[%emt 0:02:58]} 34. Qxe8+ {[%emt 0:00:06]} Kh7 {[%emt 0:00:11]} 0-1